bitfinex/quotes_ETHUSD_20250126
["timestamp","ask_amount","ask_price","bid_price","bid_amount"]
[1737857823117,3.00681,3325.8,3325.1,0.98194]
[1737857823318,3.00663,3326.0,3325.2,0.55]
[1737857823494,3.00663,3326.0,3325.2,3.55727]
[1737857823822,3.00663,3326.0,3325.4,0.55]
[1737857824695,3.044215,3326.0,3325.4,0.55]
[1737857827086,3.00663,3326.0,3325.4,0.55]
[1737857828589,3.04421503,3326.0,3325.4,0.55]
[1737857831002,3.75863,3326.1,3325.4,0.55]
[1737857831390,3.04420505,3326.0,3325.4,0.55]
[1737857832291,3.00673,3325.9,3325.1,3.98935]
[1737857832624,0.8284,3325.7,3325.1,3.98935]
[1737857832928,0.8284,3325.7,3325.2,0.55]
[1737857833223,3.83528,3325.7,3325.2,0.55]
[1737857833433,3.00698,3325.6,3325.0,0.8044]
[1737857836729,5.31,3325.9,3325.0,0.8044]
[1737857836730,5.31,3325.9,3325.1,0.55]
[1737857836896,5.31,3325.9,3325.4,0.55]
[1737857837096,5.31,3325.9,3325.4,3.55712]
[1737857837548,8.35429512,3325.9,3325.4,0.55]
[1737857837708,3.0068,3325.8,3325.1,3.00741]
[1737857838950,3.0068,3325.8,3325.2,3.00733]
[1737857840935,0.03758911,3325.7,3325.2,3.00733]
[1737857841322,0.8284,3325.5,3325.0,3.81191]
[1737857841517,0.8284,3325.5,3324.8,3.00769]
[1737857841855,0.86598959,3325.5,3324.8,3.00769]
[1737857842022,3.00732,3325.3,3324.6,3.77267]
[1737857843339,3.0075,3325.1,3324.6,0.7648]
[1737857843544,3.0075,3325.1,3324.5,0.55]
[1737857843545,0.8284,3325.0,3324.5,0.55]
[1737857843808,3.87354504,3325.0,3324.4,3.00806]
[1737857844035,0.3873545,3324.9,3324.4,3.00806]
[1737857845350,0.8284,3324.7,3323.9,3.00849]
[1737857845561,0.8284,3324.7,3324.0,6.00838]
[1737857845865,0.8284,3324.7,3324.1,0.55]
[1737857846210,0.03760025,3324.6,3324.1,3.55829]
[1737857846414,0.86600071,3324.7,3324.1,3.55829]
[1737857846649,0.8284,3324.7,3324.1,3.55829]
[1737857847059,0.86600014,3324.7,3324.1,3.55829]
[1737857847228,0.86600014,3324.7,3324.1,3.00829]
[1737857847565,3.8362,3324.7,3324.1,3.00829]
[1737857848420,0.8284,3324.7,3324.0,6.00842]
[1737857848668,6.1384,3324.9,3324.4,3.00804]
[1737857849974,6.1384,3324.9,3324.6,3.00786]
[1737857850138,0.8284,3324.9,3324.6,3.00786]
[1737857852328,0.8284,3324.9,3324.4,3.00804]
[1737857853292,0.8284,3324.9,3324.2,3.00823]
[1737857853682,3.83601,3324.9,3324.2,3.00823]
[1737857854004,0.03759884,3324.8,3324.2,3.00823]
[1737857854483,0.779,3324.7,3324.2,3.00823]
[1737857855250,0.779,3324.7,3324.0,3.0084]
[1737857855251,0.779,3324.7,3324.3,3.00808]
[1737857859202,0.779,3324.7,3324.4,3.00806]
[1737857861037,0.779,3324.7,3324.1,3.00827]
[1737857861334,0.779,3324.4,3323.9,3.00851]
[1737857862093,0.81660273,3324.4,3323.9,3.00851]
[1737857862340,0.779,3324.4,3323.9,3.00851]
[1737857862791,0.779,3324.4,3324.0,3.00842]
[1737857865851,0.03760276,3324.3,3323.8,3.00859]
[1737857867755,0.03760448,3324.3,3323.8,3.00859]
[1737857869879,0.779,3324.4,3324.0,3.00841]
[1737857870046,0.779,3324.4,3324.2,3.0082]
[1737857875495,0.779,3324.4,3324.0,3.00841]
[1737857878460,0.779,3324.4,3324.1,3.00832]
[1737857879280,0.779,3324.4,3324.0,3.00842]
[1737857879909,0.779,3324.4,3322.7,5.26]
[1737857880215,3.0085,3324.0,3323.3,3.00898]
[1737857880398,0.8235,3323.8,3323.4,3.0]
[1737857882809,0.8235,3323.8,3323.5,3.00879]
[1737857883192,0.8235,3323.8,3323.6,3.00877]
[1737857883921,0.8235,3323.8,3323.4,6.0089]
[1737857884223,0.8235,3323.8,3323.4,3.0089]
[1737857887426,0.03761035,3323.7,3323.2,3.0]
[1737857887588,0.03761035,3323.7,3323.2,3.00913]
[1737857890274,3.83211,3323.8,3323.2,3.00913]
[1737857890609,0.8235,3323.8,3323.3,3.00902]
[1737857891619,3.86971327,3323.8,3323.2,3.00914]
[1737857892120,0.8235,3323.8,3323.1,3.0]
[1737857892418,0.8235,3323.8,3323.3,3.00904]
[1737857893183,0.86111328,3323.8,3323.3,3.00904]
[1737857893429,0.8235,3323.8,3323.3,3.00904]
[1737857894587,0.86111328,3323.8,3323.3,3.00904]
[1737857895901,0.8235,3323.8,3323.3,3.00904]
[1737857897026,3.86978328,3323.8,3323.1,6.00923]
[1737857897425,0.86111328,3323.8,3323.1,6.00923]
[1737857897625,1.81136525,3323.8,3323.2,3.00913]
[1737857897882,3.00871,3323.7,3323.0,3.00927]
[1737857898034,0.79101343,3323.6,3323.1,3.0]
[1737857899396,3.79983343,3323.6,3322.9,3.00939]
[1737857899704,0.7534,3323.6,3323.0,3.0]
[1737857899850,0.7534,3323.6,3323.1,3.0092]
[1737857900305,6.0634,3323.6,3323.0,3.0]
[1737857900606,6.0634,3323.6,3322.5,3.00977]
[1737857900607,0.7554,3323.4,3322.5,3.00977]
[1737857900764,0.7554,3323.1,3322.6,3.00968]
[1737857900969,0.7554,3323.1,3322.7,3.00959]
[1737857901665,0.7554,3323.1,3322.5,3.0]
[1737857901883,0.03761885,3323.0,3322.5,3.0]
[1737857903217,0.03761885,3323.0,3322.6,3.00966]
[1737857903568,0.7554,3322.9,3322.4,3.00987]
[1737857903780,0.79302238,3322.9,3322.4,3.00987]
[1737857904452,0.7554,3322.7,3321.9,3.01027]
[1737857904655,0.03762399,3322.6,3321.9,3.01027]
[1737857904871,0.03762399,3322.6,3322.0,3.55]
[1737857905097,0.03762399,3322.6,3322.2,3.0]
[1737857905420,0.7554,3322.5,3321.7,3.01044]
[1737857905619,3.0475289,3322.4,3321.6,3.01059]
[1737857905770,0.7554,3322.3,3321.6,3.0]
[1737857906501,0.03762908,3322.2,3321.6,3.0]
[1737857906654,0.79302909,3322.3,3321.6,3.0]
[1737857907083,0.7554,3322.3,3321.6,3.0]
[1737857907288,0.7554,3322.3,3321.7,3.01048]
[1737857907692,3.76536,3322.3,3321.7,3.01048]
[1737857909559,3.80298906,3322.3,3321.7,3.01048]
[1737857910297,3.76536,3322.3,3321.7,3.01048]
[1737857911021,3.04770907,3322.2,3321.6,3.0]
[1737857911221,0.7914,3322.1,3321.6,3.0]
[1737857911423,0.7914,3322.1,3321.6,6.01059]
[1737857912035,0.7914,3322.1,3321.7,3.01048]
[1737857915573,0.7914,3322.1,3321.8,3.01032]
[1737857915887,0.7914,3322.1,3321.9,3.01032]
[1737857917836,5.31,3322.5,3321.9,0.60208]
[1737857917978,5.31,3322.5,3322.3,3.00994]
[1737857921208,0.7914,3322.6,3322.3,3.00994]
[1737857923023,0.7914,3322.6,3322.0,3.01015]
[1737857923338,0.7914,3322.6,3322.1,3.01008]
[1737857925839,0.03762431,3322.5,3322.0,3.01015]
[1737857926440,0.7914,3322.6,3322.0,3.01015]
[1737857926609,0.03762431,3322.5,3322.0,3.01015]
[1737857927638,0.82902431,3322.6,3322.0,3.01015]
[1737857928716,0.7914,3322.6,3322.0,3.01015]
[1737857932521,0.7914,3322.6,3322.1,3.01013]
[1737857934731,0.7914,3322.6,3321.9,0.55]
[1737857935055,3.83873435,3322.6,3322.0,3.01022]
[1737857937356,3.80111,3322.6,3322.0,3.01022]
[1737857937673,0.7914,3322.6,3322.0,3.01022]
[1737857937975,0.7914,3322.6,3322.2,3.01004]
[1737857942497,3.00952,3322.8,3322.2,3.01004]
[1737857942703,3.80762,3322.8,3322.2,3.01004]
[1737857944010,0.7981,3322.8,3322.6,3.00968]
[1737857944315,0.7981,3323.1,3322.7,0.300968]
[1737857944468,0.7981,3323.1,3322.7,3.00958]
[1737857946264,0.7981,3323.1,3322.6,3.00963]
[1737857946709,0.7981,3322.8,3322.1,3.79394]
[1737857947021,3.80786,3322.6,3321.9,8.27029]
[1737857947321,3.80809,3322.3,3321.5,3.79446]
[1737857947504,0.03762834,3322.2,3321.5,3.79446]
[1737857947690,3.80809,3322.3,3321.6,3.55]
[1737857948018,3.80809,3322.3,3321.6,0.55]
[1737857948319,3.80809,3322.3,3321.7,3.0105]
[1737857952529,0.7981,3322.3,3321.8,3.01033]
[1737857952813,0.7981,3322.3,3321.9,3.01032]
[1737857954614,0.7981,3322.3,3321.8,0.55]
[1737857954832,0.7981,3322.3,3321.8,3.0104]
[1737857955141,0.7981,3322.3,3321.9,3.01031]
[1737857956132,0.7981,3322.3,3321.7,3.56049]
[1737857956133,0.819,3322.5,3322.1,0.55]
[1737857956502,0.819,3322.5,3322.3,3.00995]
[1737857956703,0.819,3322.5,3322.0,3.01017]
[1737857956903,0.819,3322.5,3322.1,3.01009]
[1737857958001,0.819,3322.5,3321.9,3.01029]
[1737857958202,4.24927387,3322.5,3321.9,3.01029]
[1737857958403,0.819,3322.4,3321.9,3.01029]
[1737857961058,0.819,3322.4,3322.0,3.01021]
[1737857961752,3.82073,3322.8,3322.1,3.01008]
[1737857961960,3.85835698,3322.8,3322.1,6.02016]
[1737857963552,3.82073,3322.8,3322.1,6.02016]
[1737857963733,3.82073,3322.8,3322.2,3.01001]
[1737857964151,3.85835405,3322.8,3322.2,3.01001]
[1737857964454,3.82073,3322.8,3322.2,3.01001]
[1737857965958,3.85835406,3322.8,3322.2,3.01001]
[1737857968424,3.82073,3322.8,3322.2,3.01001]
[1737857969166,0.8112,3322.8,3322.3,3.00995]
[1737857975287,9.07075,3323.0,3322.3,3.611957]
[1737857975489,3.76075,3323.0,3322.4,3.00985]
[1737857976683,0.03761991,3322.9,3322.4,3.00985]
[1737857977890,3.04703991,3322.9,3322.2,3.55999]
[1737857978187,0.7514,3322.8,3322.2,0.55]
[1737857978390,0.03762223,3322.7,3322.2,0.55]
[1737857978758,0.03762223,3322.7,3322.2,3.01004]
[1737857979469,3.76094,3322.8,3322.2,3.01004]
[1737857980393,0.03762156,3322.7,3322.2,3.01004]
[1737857981213,3.76094,3322.8,3322.2,3.01004]
[1737857981500,0.7514,3322.8,3322.2,3.40144712]
[1737857981813,0.7514,3323.2,3323.1,3.00923]
[1737857982107,6.0614,3323.9,3323.2,0.55]
[1737857982406,6.0614,3323.9,3323.5,3.00885]
[1737857982407,0.7514,3323.9,3323.5,3.00885]
[1737857982970,0.7514,3323.9,3323.3,3.00904]
[1737857983186,0.78900908,3323.9,3323.3,3.00904]
[1737857984614,0.78900908,3323.9,3323.2,3.55]
[1737857984913,0.78900908,3323.9,3323.4,3.00894]
[1737857985820,0.7514,3323.9,3323.4,3.00894]
[1737857989289,6.0614,3324.1,3323.6,3.00878]
[1737857989723,0.7514,3323.9,3323.2,3.00911]
[1737857990026,0.03761061,3323.8,3323.3,3.00899]
[1737857990615,0.7758,3323.6,3322.9,3.00939]
[1737857990818,0.7758,3323.3,3322.7,5.26]
[1737857991133,3.00931,3323.1,3322.7,5.26]
[1737857991430,0.7758,3323.3,3322.5,3.0]
[1737857991614,3.00922,3323.2,3322.5,6.610692]
[1737857991819,3.0468396,3323.2,3322.5,6.610692]
[1737857992514,3.00922,3323.2,3322.5,6.610692]
[1737857992823,0.03762032,3323.1,3322.5,6.610692]
[1737857993030,3.00922,3323.2,3322.5,6.610692]
[1737857993452,3.00922,3323.2,3322.6,3.00967]
[1737857993597,3.0468403,3323.2,3322.6,3.00967]
[1737857994015,3.0093,3323.1,3322.4,3.0]
[1737857994207,0.7758,3322.9,3322.4,3.0]
[1737857994440,0.0376205,3322.8,3322.3,3.00995]
[1737857995111,0.0376205,3322.8,3322.2,3.0]
[1737857995307,0.7758,3322.7,3322.1,3.01013]
[1737857995632,0.7758,3322.7,3322.0,3.55]
[1737857995831,0.7758,3322.7,3322.2,3.01005]
[1737857996036,0.03762355,3322.6,3322.2,3.01005]
[1737857997403,0.7758,3322.7,3322.2,3.01005]
[1737858000345,0.81342259,3322.7,3322.2,3.01005]
[1737858000645,0.7758,3322.7,3322.2,3.01005]
[1737858001146,0.7758,3322.7,3322.0,7.21626]
[1737858001444,0.7957,3322.5,3322.0,3.56023]
[1737858002351,0.7957,3322.5,3322.1,3.01012]
[1737858002936,0.7957,3322.5,3322.0,3.56023]
[1737858003240,0.7957,3322.5,3322.2,3.01004]
[1737858003443,0.7957,3322.8,3322.3,3.00994]
[1737858005564,0.7957,3322.8,3322.1,3.01012]
[1737858006152,3.80521,3322.8,3322.1,3.01012]
[1737858006630,3.80521,3322.8,3322.2,3.01005]
[1737858007128,3.80532,3322.7,3322.0,3.56017]
[1737858007332,0.03762415,3322.6,3321.8,0.55]
[1737858007555,0.7957,3322.7,3322.1,3.01013]
[1737858007934,0.03762414,3322.6,3322.1,3.01013]
[1737858008859,3.8053,3322.7,3322.1,3.01013]
[1737858009428,0.03762414,3322.6,3321.9,3.01031]
[1737858009670,3.80548,3322.5,3321.9,3.01031]
[1737858009973,0.03762539,3322.4,3321.9,3.01031]
[1737858012772,0.7957,3322.5,3322.0,3.01016]
[1737858014371,0.7992,3322.2,3321.6,3.01051]
[1737858014577,0.7992,3322.0,3321.6,3.01051]
[1737858014930,0.03762893,3321.9,3321.6,3.01051]
[1737858015255,0.03762893,3321.9,3321.4,3.01077]
[1737858016590,0.7992,3322.0,3321.5,3.01066]
[1737858022782,0.7992,3322.0,3321.6,3.01058]
[1737858024010,0.8148,3322.4,3321.7,0.55]
[1737858024218,0.8148,3322.4,3322.1,3.01007]
[1737858024420,0.8148,3322.4,3322.1,3.311077]
[1737858028090,6.1248,3322.7,3322.1,3.311077]
[1737858028292,0.8148,3322.7,3322.1,3.311077]
[1737858028528,0.8148,3322.7,3322.3,3.00996]
[1737858031129,0.8148,3322.7,3322.4,3.00984]
[1737858031298,0.8148,3322.7,3322.4,3.61182]
[1737858031830,0.7923,3323.0,3322.4,3.61182]
[1737858032552,0.05296585,3322.9,3322.4,3.61182]
[1737858033439,0.05296585,3322.9,3322.5,3.00971]
[1737858033737,0.05296585,3322.9,3322.6,3.00966]
[1737858035238,0.05296585,3322.9,3322.7,3.00958]
[1737858035400,0.05296585,3322.9,3322.6,0.300966]
[1737858036295,0.05296585,3322.9,3322.4,0.7606]
[1737858036911,0.05296585,3322.9,3322.6,3.00961]
[1737858037223,0.05296585,3322.9,3322.8,3.00951]
[1737858037737,0.7923,3323.5,3323.0,3.00924]
[1737858038106,0.05244578,3323.4,3323.0,3.00924]
[1737858038409,0.05244578,3323.4,3323.1,3.0092]
[1737858039333,3.8009,3323.8,3323.1,3.0092]
[1737858039508,0.05237314,3323.3,3323.1,3.0092]
[1737858039710,3.8009,3323.8,3323.1,3.0092]
[1737858039938,0.05230049,3323.2,3323.1,3.0092]
[1737858040126,3.8009,3323.8,3323.1,3.6788535]
[1737858040319,0.05230049,3323.2,3323.1,3.6788535]
[1737858040808,3.8009,3323.8,3323.1,3.6788535]
[1737858041009,0.05266367,3323.7,3323.1,3.6788535]
[1737858041199,3.00879,3323.6,3323.1,0.6696535]
[1737858041406,0.09027629,3323.7,3323.0,0.55]
[1737858041605,3.00887,3323.5,3323.0,0.55]
[1737858041805,0.05244578,3323.4,3323.0,0.55]
[1737858042561,0.05244578,3323.4,3323.0,3.5593]
[1737858042707,0.05244578,3323.4,3323.1,3.00923]
[1737858042908,0.7923,3323.6,3323.2,0.355923]
[1737858043230,3.00844,3324.0,3323.2,0.355923]
[1737858043452,0.0503241,3323.5,3323.3,0.7606]
[1737858043751,3.80087,3323.9,3323.3,0.7606]
[1737858043921,0.05025146,3323.4,3323.3,0.7606]
[1737858044252,0.7923,3323.9,3323.4,3.00895]
[1737858047155,0.7923,3324.2,3323.4,0.55]
[1737858047360,5.31,3324.5,3323.3,1.1731753]
[1737858047361,6.1023,3324.5,3323.9,3.00845]
[1737858047508,0.7923,3324.5,3323.9,3.00845]
[1737858047712,0.7923,3324.5,3323.9,3.610163]
[1737858048609,3.0456631,3324.4,3323.9,0.601713]
[1737858048830,3.0456631,3324.4,3323.8,0.55]
[1737858049059,3.00816,3324.3,3323.8,0.55]
[1737858049424,0.7923,3324.1,3323.6,3.0]
[1737858049824,0.7923,3324.1,3323.6,3.00877]
[1737858050573,0.05025108,3324.0,3323.6,3.00877]
[1737858050728,0.05025108,3324.0,3323.7,0.676937]
[1737858051626,3.76565,3324.3,3323.7,0.676937]
[1737858051826,0.05020152,3323.9,3323.7,0.676937]
[1737858052152,0.7575,3323.8,3323.5,0.55]
[1737858052323,0.8076289,3323.8,3323.5,0.55]
[1737858053843,0.8076289,3323.8,3323.5,3.00886]
[1737858055541,0.0501289,3323.8,3323.7,3.00869]
[1737858055741,0.0501289,3323.8,3323.7,4.988345]
[1737858055960,8.3178,3324.7,3324.1,3.00831]
[1737858055961,0.7575,3324.5,3324.1,3.00831]
[1737858056342,0.05071251,3324.4,3324.1,3.00831]
[1737858056771,0.05071251,3324.4,3324.3,3.00815]
[1737858057085,0.7575,3324.7,3324.1,3.00831]
[1737858057229,0.04937076,3324.4,3324.1,3.00831]
[1737858057574,0.7575,3324.7,3324.1,3.609991]
[1737858057773,0.04929816,3324.3,3324.1,3.609991]
[1737858058077,0.04922556,3324.2,3324.1,3.609991]
[1737858058575,0.7575,3324.7,3324.1,3.609991]
[1737858058881,0.7575,3324.7,3324.1,0.601681]
[1737858059179,3.09491612,3324.6,3324.0,0.55]
[1737858061175,3.09491612,3324.6,3324.0,3.55838]
[1737858063183,3.05731528,3324.6,3324.0,3.55838]
[1737858063379,3.09491613,3324.6,3324.0,3.55838]
[1737858064621,0.04941528,3324.6,3324.1,3.00826]
[1737858064785,0.04941528,3324.6,3324.1,3.664924]
[1737858065933,0.04941528,3324.6,3324.2,3.78935]
[1737858070172,0.04941528,3324.6,3324.1,0.656664]
[1737858070470,0.04941528,3324.6,3324.0,3.55838]
[1737858070643,0.04941528,3324.6,3324.1,3.0083]
[1737858072469,0.04941528,3324.6,3324.2,3.00823]
[1737858074433,0.04941528,3324.6,3324.0,3.55841]
[1737858074434,0.04941528,3324.6,3324.0,0.55]
[1737858074769,0.04941528,3324.6,3324.1,3.00833]
[1737858074969,0.04941528,3324.6,3324.0,0.55]
[1737858075190,0.04941528,3324.6,3324.2,3.00823]
[1737858076490,0.04941528,3324.6,3324.3,3.55809]
[1737858076668,0.04941528,3324.6,3324.5,3.55797]
[1737858076872,0.7703,3325.3,3324.7,0.55]
[1737858077094,0.7703,3325.3,3324.9,0.55]
[1737858077304,0.7703,3325.3,3324.9,3.913353]
[1737858077457,0.7703,3325.3,3324.9,3.55759]
[1737858077655,3.00746,3325.1,3324.5,3.00796]
[1737858077860,0.7703,3325.0,3324.4,3.00805]
[1737858078052,0.7703,3325.0,3324.5,0.55]
[1737858078599,0.7703,3325.0,3324.6,0.55]
[1737858078802,0.7703,3325.0,3324.7,3.00776]
[1737858079102,3.77747,3325.4,3324.8,3.308466]
[1737858079265,3.77747,3325.4,3324.8,3.00769]
[1737858080504,0.04695885,3325.3,3324.8,3.80479]
[1737858083100,0.04695885,3325.3,3324.9,0.55]
[1737858083318,3.00739,3325.2,3324.6,3.00785]
[1737858083598,3.05413307,3325.2,3324.7,0.55]
[1737858083906,0.04674307,3325.2,3324.7,3.00778]
[1737858084108,0.04674307,3325.2,3324.8,0.355778]
[1737858084403,3.00725,3325.3,3324.8,0.355778]
[1737858084706,0.04674307,3325.2,3324.8,0.355778]
[1737858084879,3.00725,3325.3,3324.8,0.355778]
[1737858085080,0.7703,3323.9,3323.0,0.7971]
[1737858085476,3.00877,3323.7,3323.0,0.7971]
[1737858085879,0.04558124,3323.6,3323.1,0.55]
[1737858086074,3.77882,3323.9,3323.0,3.80642]
[1737858086278,0.04550859,3323.5,3323.1,0.380642]
[1737858086496,3.77882,3323.9,3323.2,0.55]
[1737858086695,0.04543594,3323.4,3323.2,0.55]
[1737858086893,3.00863,3323.8,3323.2,0.55]
[1737858087219,0.04536328,3323.3,3323.2,0.55]
[1737858087411,0.7703,3323.9,3323.3,3.55902]
[1737858093166,3.77882,3323.9,3323.3,3.55902]
[1737858095633,0.04547756,3323.8,3323.3,3.55902]
[1737858096586,0.04547756,3323.8,3323.2,0.4737062]
[1737858096587,3.00871,3323.7,3323.2,0.4737062]
[1737858096874,3.00871,3323.7,3323.0,0.7971]
[1737858096875,0.04566565,3323.6,3323.0,3.80636]
[1737858097049,0.04566565,3323.6,3323.2,0.55]
[1737858098675,0.04566565,3323.6,3323.2,3.55907]
[1737858098878,3.77235,3324.2,3323.2,0.55]
[1737858099049,3.00836,3324.1,3323.5,0.55]
[1737858099560,3.00843,3324.0,3323.5,0.55]
[1737858105775,3.00843,3324.0,3323.4,0.55]
[1737858105967,3.00835,3324.1,3323.4,0.983439]
[1737858106165,0.7641,3324.2,3323.4,0.983439]
[1737858106361,3.00845,3324.0,3323.4,0.983439]
[1737858109893,0.7641,3324.2,3323.4,0.983439]
[1737858110106,0.7641,3324.6,3324.0,0.55]
[1737858110249,9.08173,3324.9,3324.2,0.55]
[1737858110444,3.00724,3325.4,3324.2,0.55]
[1737858110445,3.00754,3325.0,3324.4,3.00804]
[1737858110650,0.7775,3325.3,3324.6,0.8128]
[1737858111066,3.00736,3325.2,3324.6,0.8128]
[1737858118416,3.00746,3325.1,3324.6,0.8128]
[1737858120715,3.77751,3324.8,3324.3,0.762]
[1737858120872,3.385541,3324.7,3324.3,0.762]
[1737858121071,3.00779,3324.7,3324.3,0.762]
[1737858123118,0.7698,3324.8,3324.3,0.762]
[1737858125487,0.04377875,3324.7,3324.3,0.762]
[1737858126424,0.04377875,3324.7,3324.6,3.00788]
[1737858126776,3.77705,3325.3,3324.6,3.00788]
[1737858127110,4.685755,3325.3,3324.6,3.00788]
[1737858127317,0.0427109,3325.2,3324.6,3.00788]
[1737858128076,0.0427109,3325.2,3324.7,3.00775]
[1737858129122,0.0427109,3325.2,3324.8,3.78199]
[1737858129414,3.77656,3325.9,3325.2,3.00727]
[1737858129572,1.50944836,3325.9,3325.3,3.78152]
[1737858130009,0.7698,3325.9,3325.4,3.00714]
[1737858131536,3.00663,3326.0,3325.4,3.00714]
[1737858131725,3.7982561,3326.2,3325.5,3.00704]
[1737858132822,3.7605,3326.4,3325.7,3.00687]
[1737858133117,0.676668,3326.3,3325.8,3.00678]
[1737858133419,3.7605,3326.4,3325.8,3.00678]
[1737858133615,3.6185697,3326.6,3325.8,6.01356]
[1737858133816,3.7602,3326.7,3325.8,3.00678]
[1737858134003,3.00609,3326.6,3326.0,3.00661]
[1737858134493,3.00609,3326.6,3325.9,0.7664]
[1737858135560,3.00609,3326.6,3325.9,3.7731]
[1737858138558,3.00619,3326.5,3325.9,3.7731]
[1737858139586,3.00619,3326.5,3325.9,4.15041]
[1737858140325,0.04399103,3326.4,3325.9,4.15041]
[1737858140738,0.04399103,3326.4,3325.9,1.14371]
[1737858144863,0.04399103,3326.4,3326.0,0.55]
[1737858145030,0.04399103,3326.4,3326.1,3.00651]
[1737858145230,3.76023,3326.7,3326.2,0.355651]
[1737858145431,0.04256005,3326.3,3326.2,0.355651]
[1737858145952,3.76023,3326.7,3326.2,0.355651]
[1737858146262,0.04256005,3326.3,3326.2,0.355651]
[1737858146466,3.76023,3326.7,3326.2,0.355651]
[1737858146629,0.04256005,3326.3,3326.2,0.355651]
[1737858146832,0.7542,3326.7,3326.2,3.362071]
[1737858147029,0.7542,3326.7,3326.3,0.3362071]
[1737858147362,3.0058,3326.9,3326.4,0.7664]
[1737858147962,3.00564,3327.1,3326.4,0.7664]
[1737858148275,3.00564,3327.1,3326.4,3.77265]
[1737858149888,3.00564,3327.1,3326.4,0.7664]
[1737858150088,3.00578,3327.0,3326.4,0.7664]
[1737858150251,3.00564,3327.1,3326.4,0.7664]
[1737858150451,3.00564,3327.1,3326.4,3.77263]
[1737858150769,3.00564,3327.1,3326.5,0.41088371]
[1737858151270,0.7542,3327.2,3326.5,0.41088371]
[1737858151271,3.00571,3327.0,3326.5,0.41088371]
[1737858152571,3.00579,3327.0,3326.4,0.7664]
[1737858152777,3.00582,3326.9,3326.4,0.7664]
[1737858152975,0.7769,3326.7,3326.0,4.33319]
[1737858153293,3.00617,3326.5,3326.0,1.3266]
[1737858153488,3.00617,3326.5,3326.1,0.77106]
[1737858154498,3.78294,3326.7,3326.1,0.77106]
[1737858154688,0.7769,3326.7,3326.1,0.77106]
[1737858155087,3.00615,3326.6,3326.1,0.77106]
[1737858155323,3.00652,3326.2,3325.8,5.26]
[1737858155465,3.00652,3326.2,3325.6,0.7766]
[1737858155663,3.00652,3326.2,3325.7,0.55]
[1737858155877,0.04248985,3326.1,3325.8,0.43266]
[1737858156587,0.04248985,3326.1,3326.0,4.33321]
[1737858156801,3.00613,3326.6,3326.1,0.55]
[1737858160866,0.03757748,3326.7,3325.8,0.43266]
[1737858161105,0.03757748,3326.7,3325.5,6.00703]
[1737858161106,0.7769,3326.6,3325.6,0.7766]
[1737858161308,3.00644,3326.2,3325.7,0.55]
[1737858161809,3.00658,3326.1,3325.7,0.55]
[1737858161981,3.78348,3326.1,3325.7,0.55]
[1737858162716,3.78348,3326.1,3325.6,0.55]
[1737858163185,3.78348,3326.1,3325.5,3.0]
[1737858163186,3.0067,3325.9,3325.4,0.7766]
[1737858163509,3.00697,3325.6,3325.1,0.7766]
[1737858163678,3.784,3325.5,3324.9,3.7842]
[1737858163882,3.04480957,3325.4,3324.5,0.7766]
[1737858164080,3.00745,3325.1,3324.6,0.378459]
[1737858164287,3.00745,3325.1,3324.5,0.7766]
[1737858165113,3.00752,3325.0,3324.5,0.7766]
[1737858166973,0.7769,3324.9,3324.5,0.55]
[1737858168475,0.7769,3325.1,3324.5,0.55]
[1737858170429,0.04133633,3325.0,3324.4,3.00803]
[1737858170741,0.04133633,3325.0,3324.4,3.68731]
[1737858175134,0.03759535,3324.9,3324.2,3.78477]
[1737858175292,0.04119119,3324.8,3324.2,3.00817]
[1737858175498,0.7725,3324.9,3324.2,3.00817]
[1737858175726,0.04094366,3324.8,3324.2,3.00817]
[1737858176241,3.04865366,3324.8,3324.2,3.00817]
[1737858177649,0.04094366,3324.8,3324.2,3.00817]
[1737858178756,0.04094366,3324.8,3324.3,3.00814]
[1737858181754,0.04094366,3324.8,3324.5,3.00796]
[1737858182820,0.04094366,3324.8,3324.4,3.00805]
[1737858183427,0.04094366,3324.8,3324.2,6.00818]
[1737858183952,0.04094366,3324.8,3324.3,3.00807]
[1737858184554,0.04094366,3324.8,3324.2,3.0]
[1737858184754,0.04094366,3324.8,3324.2,6.00817]
[1737858184925,0.04094366,3324.8,3324.3,3.00813]
[1737858186568,0.7725,3324.3,3323.7,3.76676]
[1737858186771,0.7725,3324.3,3323.8,0.55]
[1737858187073,0.04023971,3324.2,3323.8,0.55]
[1737858187275,0.04023971,3324.2,3323.8,3.55859]
[1737858187461,0.7725,3324.3,3323.8,3.55859]
[1737858187660,0.04016295,3324.1,3323.8,3.55859]
[1737858188007,0.04009034,3324.0,3323.8,3.55859]
[1737858188137,0.7725,3324.3,3323.8,3.55859]
[1737858188477,0.04023555,3324.2,3323.8,3.55859]
[1737858188858,3.78065,3324.3,3323.6,3.55875]
[1737858189175,0.04017102,3324.2,3323.8,0.55]
[1737858189375,3.78065,3324.3,3323.8,0.55]
[1737858189668,0.7725,3323.9,3323.4,3.0]
[1737858190047,0.03985144,3323.8,3323.4,3.0]
[1737858191070,0.03985144,3323.8,3323.4,6.00895]
[1737858192087,0.03985144,3323.8,3323.5,3.00885]
[1737858194295,0.03985144,3323.8,3323.7,4.31529]
[1737858194471,0.7846,3324.5,3324.0,3.00834]
[1737858194868,0.03897405,3324.4,3324.0,3.00834]
[1737858199596,0.03897405,3324.4,3323.8,3.00859]
[1737858200380,0.0765771,3324.4,3323.8,3.00859]
[1737858200703,0.0765771,3324.4,3323.6,3.00878]
[1737858200704,0.7846,3324.2,3323.6,3.00878]